[Event "EICC 2025"]
[Site "Eforie-Nord"]
[Date "2025.03.16"]
[Round "2.23"]
[White "Sargissian, Gabriel"]
[Black "Bronstein, Or"]
[Result "1-0"]
[Annotator "TA"]
[ECO "A14"]
[WhiteElo "2628"]
[BlackElo "2451"]
[PlyCount "105"]
[EventDate "2025.03.14"]
[EventType "swiss"]
[EventCountry "ROU"]
[SourceTitle "playchess.com"]
[Source "ChessBase"]
[SourceQuality "1"]
[TimeControl "40/5400+30:1800+30"]

{[%evp 12,105,-3,-7,0,-13,0,-5,0,-1,0,-16,-5,-6,-13,-20,0,0,0,-13,-12,-9,-19,-17,-9,0,0,-24,0,0,0,-14,-13,-36,0,0,0,0,0,0,0,0,22,14,12,15,37,10,16,-6,43,27,89,0,252,235,200,166,180,180,308,307,309,309,295,281,284,298,279,285,268,238,218,219,270,259,304,297,301,297,336,336,310,300,407,393,356,235,29974,29977,29977,29978,29985,29986,29986,29987]} 1. c4 {[%emt 0:00:07]} Nf6 {[%emt 0:01:35]} 2. g3 {[%emt 0:00:35]} e6 {[%emt 0:02:27]} 3. Bg2 {[%emt 0:00:40]} d5 {[%emt 0:00:02]} 4. Nf3 {[%emt 0:00:49]} Be7 {[%emt 0:00:19]} 5. O-O {[%emt 0:01:45]} O-O {[%emt 0:00:04]} 6. cxd5 {[%emt 0:06:30]} exd5 {[%emt 0:00:37]} 7. b3 {[%emt 0:00:09]} Re8 {[%emt 0:23:55] 7...c5 is the modern continuation. A14: English Opening: 1...e6 with b3 by White.} 8. Bb2 {[%emt 0:00:47]} Bf8 {[%emt 0:05:15]} 9. d3 $146 {[%emt 0:00:53]} (9. Re1 h6 10. h3 Bf5 11. d3 Nbd7 12. Nbd2 Bh7 13. Qc2 c6 14. Rad1 Qa5 15. e4 {1-0 Duda,J (2739)-Nepomniachtchi,I (2754) Chessable Masters Winners rapid 2025 (1.2)}) 9... Bf5 {[%emt 0:06:23] The position is equal.} 10. Nbd2 {[%emt 0:13:40]} h6 {[%emt 0:02:51]} 11. Re1 {[%emt 0:06:59][%cal Oe2e4]} Bh7 {[%emt 0:06:22]} 12. Ne5 {[%emt 0:09:42]} Bd6 {[%emt 0:08:25]} 13. f4 {[%emt 0:18:12]} Bxe5 {[%emt 0:03:43]} 14. fxe5 {[%emt 0:01:07]} Ng4 {[%emt 0:00:15][%cal Og4e3]} 15. e4 {[%emt 0:01:39][%cal Be2e4,Be4d5,Bd5d6][%mdl 32]} Nxe5 {[%emt 0:00:11]} 16. Bxe5 {[%emt 0:00:41] White sacrificed a pawn} Rxe5 {[%emt 0:00:02]} 17. d4 {[%emt 0:00:34]} Re7 {[%emt 0:02:06]} 18. exd5 {[%emt 0:02:04]} Nd7 {[%emt 0:12:22]} 19. Nc4 {[%emt 0:00:36]} Rxe1+ {[%emt 0:00:22]} 20. Qxe1 {[%emt 0:00:09]} Nf6 {[%emt 0:00:12]} 21. Qb4 {[%emt 0:07:31]} Rb8 {[%emt 0:05:06][%cal Oh7e4]} 22. d6 {[%emt 0:05:55]} Ne4 {[%emt 0:05:00]} 23. Bxe4 {[%emt 0:01:54]} Bxe4 {[%emt 0:00:03]} 24. Re1 {[%emt 0:00:40]} Bc6 {[%emt 0:02:16]} 25. Qc5 {[%emt 0:03:59] aiming for dxc7.} cxd6 {[%emt 0:08:32]} 26. Nxd6 {[%emt 0:00:18][%cal Od6f5]} Ra8 {[%emt 0:03:30] Black is weak on the dark squares} 27. Nf5 {[%emt 0:03:44]} Bd7 {[%emt 0:01:32]} 28. Ne7+ {[%emt 0:01:13]} Kh8 {[%emt 0:00:02]} 29. d5 {[%emt 0:02:57]} Qb6 {[%emt 0:00:44]} 30. b4 {[%emt 0:00:25][%cal Bb3b4,Bb4c5][%mdl 32]} Rd8 {[%emt 0:00:37]} (30... Bh3 $11 {might be stronger.}) 31. Rf1 {[%emt 0:02:57][%cal Be1f1,Bf1f7,Bf7f3,Bf3b3][%mdl 32]} Be8 {[%emt 0:00:37] [#]} (31... f6 $1 $11) 32. a4 {[%emt 0:00:47] White is more active.} (32. Qxb6 $1 $16 axb6 33. Rc1) 32... Qxc5+ $4 {[%emt 0:00:30][%mdl 8192] Black is now going downhill.} (32... Qa6 $11 {and Black has nothing to worry.}) 33. bxc5 $18 {[%emt 0:00:12]} Bxa4 {[%emt 0:00:10]} 34. Rxf7 $11 {[%emt 0:01:26][%mdl 4096] Endgame KRB-KRN} Bb3 {[%emt 0:00:19]} 35. Rf3 {[%emt 0:01:00]} (35. Ng6+ Kh7 36. Nf8+ (36. Rxb7 Bxd5 37. c6 Bxc6 $17) 36... Kg8 $19) 35... Bc2 {[%emt 0:01:01]} (35... Bc4 {was necessary.} 36. Rc3 Bb5 (36... Bxd5 $2 {is the wrong capture.} 37. Rd3 $18)) 36. c6 $18 {[%emt 0:02:26]} bxc6 {[%emt 0:00:15]} 37. dxc6 {[%emt 0:00:08]} Rd1+ {[%emt 0:00:47]} 38. Kf2 {[%emt 0:00:56]} Be4 {[%emt 0:00:20]} 39. c7 {[%emt 0:01:24]} Bb7 {[%emt 0:00:38]} 40. Rb3 {[%emt 0:02:13]} (40. c8=B Bxf3 41. Kxf3 a5 42. Ng6+ Kh7 $17) 40... Ba6 {[%emt 0:00:06]} 41. c8=Q+ {[%emt 0:01:50]} (41. c8=R+ Bxc8 42. Nxc8 Rd2+ 43. Kf3 a5) 41... Bxc8 {[%emt 0:00:09]} 42. Nxc8 {[%emt 0:00:05] KRN-KR} Rd2+ {[%emt 0:00:15]} 43. Kg1 {[%emt 0:00:18]} Ra2 {[%emt 0:00:48]} 44. Rb7 {[%emt 0:05:14]} a5 {[%emt 0:00:08]} 45. Ra7 {[%emt 0:00:22]} Kh7 {[%emt 0:01:03]} 46. Ne7 {[%emt 0:03:06]} a4 {[%emt 0:00:03]} 47. Nd5 {[%emt 0:07:36]} h5 {[%emt 0:00:33][%cal Bh6h5,Bh5h4][%mdl 32]} 48. Nf4 {[%emt 0:02:58]} h4 {[%emt 0:02:02]} 49. g4 {[%emt 0:01:45][%cal Bg3g4,Bg4g5,Bg5g6][%mdl 32] g5 would kill now.} a3 $2 {[%emt 0:00:11]} (49... Kh6 $18 50. Ra5 g5) 50. g5 {[%emt 0:01:39] White mates.} Ra1+ {[%emt 0:01:55]} 51. Kg2 {[%emt 0:00:43]} a2 {[%emt 0:00:02]} 52. g6+ {[%emt 0:00:58]} Kh6 {[%emt 0:00:08] [#]} 53. Ra5 $1 {[%emt 0:00:19] Weighted Error Value: White=0.12 (very precise) /Black=0.40  Loses game:     	---       	Black=1      Mistake:       	White=1     	Black=4      Inaccurate:     	White=2     	Black=2      OK:         	White=16    	Black=17     Best:        	White=3     	Black=1} 1-0

[Event "EICC 2025"]
[Site "Eforie-Nord"]
[Date "2025.03.16"]
[Round "2.23"]
[White "Boyer, Mahel"]
[Black "Koutlas, Nikolaos"]
[Result "1-0"]
[Annotator "ChessBase"]
[ECO "A49"]
[WhiteElo "2529"]
[BlackElo "2369"]
[PlyCount "85"]
[EventDate "2025.03.14"]
[EventType "swiss"]
[EventCountry "ROU"]
[SourceTitle "playchess.com"]
[Source "ChessBase"]
[SourceQuality "1"]
[TimeControl "40/5400+30:1800+30"]

1. Nf3 {[%emt 0:00:04]} Nf6 {[%emt 0:00:07]} 2. b3 {[%emt 0:01:25]} g6 {[%emt 0:00:27]} 3. Bb2 {[%emt 0:00:10]} Bg7 {[%emt 0:00:04]} 4. g3 {[%emt 0:00:11]} O-O {[%emt 0:00:06]} 5. Bg2 {[%emt 0:00:05]} d6 {[%emt 0:00:48]} 6. d4 {[%emt 0:00:05]} b5 {[%emt 0:00:21]} 7. Na3 {[%emt 0:00:20]} b4 {[%emt 0:11:17]} 8. Nc4 {[%emt 0:00:07]} Bb7 {[%emt 0:00:16]} 9. a3 {[%emt 0:03:05]} a5 {[%emt 0:01:44]} 10. O-O {[%emt 0:04:05]} Nbd7 {[%emt 0:02:43]} 11. axb4 {[%emt 0:00:46]} axb4 {[%emt 0:00:06]} 12. Qd2 {[%emt 0:00:09]} c5 {[%emt 0:08:03]} 13. dxc5 {[%emt 0:02:43]} dxc5 {[%emt 0:00:17]} 14. Rxa8 {[%emt 0:00:12]} Bxa8 {[%emt 0:00:29]} 15. Rd1 {[%emt 0:01:46]} Qc7 {[%emt 0:01:16]} 16. Nfe5 {[%emt 0:07:50]} Nxe5 17. Nxe5 Qb6 {[%emt 0:22:17]} 18. Bxa8 {[%emt 0:21:23]} Rxa8 {[%emt 0:00:06]} 19. Nxf7 {[%emt 0:00:37]} Ra2 {[%emt 0:02:41]} 20. Bxf6 {[%emt 0:00:51]} Qxf6 {[%emt 0:00:09]} 21. Ng5 {[%emt 0:03:37]} Qd4 {[%emt 0:06:27]} 22. Qc1 {[%emt 0:06:03]} Qe5 {[%emt 0:00:34]} 23. Rd8+ {[%emt 0:01:09]} Bf8 {[%emt 0:00:25]} 24. Qf4 {[%emt 0:01:54]} Qxf4 {[%emt 0:00:29]} 25. gxf4 {[%emt 0:00:04]} Rxc2 {[%emt 0:01:17]} 26. Ne6 {[%emt 0:00:48]} Kf7 {[%emt 0:00:04]} 27. Ng5+ {[%emt 0:19:58]} Kg8 {[%emt 0:00:34]} 28. Ne6 {[%emt 0:02:06]} Kf7 {[%emt 0:00:05]} 29. Nxf8 {[%emt 0:00:17]} c4 {[%emt 0:00:04]} 30. Nd7 {[%emt 0:01:27]} cxb3 {[%emt 0:00:05]} 31. Ne5+ {[%emt 0:00:04]} Ke6 {[%emt 0:00:12]} 32. Rd1 {[%emt 0:00:09]} Rxe2 {[%emt 0:03:10]} 33. Rb1 {[%emt 0:05:59]} Kd5 {[%emt 0:04:31]} 34. Rxb3 {[%emt 0:01:05]} Re4 {[%emt 0:00:44]} 35. Kg2 {[%emt 0:08:56]} g5 {[%emt 0:02:47]} 36. Rd3+ {[%emt 0:01:01]} Kc5 {[%emt 0:05:32]} 37. Rd7 {[%emt 0:02:57]} gxf4 {[%emt 0:00:05]} 38. Nd3+ {[%emt 0:00:25]} Kc4 {[%emt 0:00:05]} 39. Kf3 {[%emt 0:00:39]} Re6 {[%emt 0:00:04]} 40. Nxf4 {[%emt 0:01:37]} Re5 {[%emt 0:03:59]} 41. Rc7+ {[%emt 0:32:38]} Kd4 {[%emt 0:30:38]} 42. Rb7 {[%emt 0:00:26]} Kc4 {[%emt 0:00:51]} 43. Rxb4+ {[%emt 0:00:08]} 1-0

[Event "EICC 2025"]
[Site "Eforie-Nord"]
[Date "2025.03.16"]
[Round "2.24"]
[White "Levin, Guy"]
[Black "Volokitin, Andrei"]
[Result "1/2-1/2"]
[Annotator "TA"]
[ECO "D38"]
[WhiteElo "2450"]
[BlackElo "2628"]
[PlyCount "87"]
[EventDate "2025.03.14"]
[EventType "swiss"]
[EventCountry "ROU"]
[SourceTitle "playchess.com"]
[Source "ChessBase"]
[SourceQuality "1"]
[TimeControl "40/5400+30:1800+30"]

{[%evp 12,87,33,3,23,25,35,29,33,4,0,12,31,5,-6,0,21,17,0,25,61,0,0,0,0,0,0,0,0,-17,-25,-9,-10,-18,-43,-18,-18,-30,-18,-25,-23,-27,-18,-6,-10,-19,-9,-31,-26,-58,-58,-58,-58,-47,-48,-59,-50,-57,-93,-99,-65,-86,-52,-45,-47,-83,-73,-80,0,0,0,0,0,0,0,0,0,0]} 1. d4 {[%emt 0:00:21]} Nf6 {[%emt 0:00:09]} 2. c4 {[%emt 0:00:08]} e6 {[%emt 0:00:10]} 3. Nc3 {[%emt 0:00:04]} Bb4 {[%emt 0:00:09]} 4. Nf3 {[%emt 0:00:07]} d5 {[%emt 0:00:32]} 5. Qa4+ {[%emt 0:00:06]} Nc6 {[%emt 0:00:05]} 6. e3 {[%emt 0:00:06]} O-O {[%emt 0:00:22]} 7. Bd2 {[%emt 0:00:03]} dxc4 {[%emt 0:01:12] D38: Queen's Gambit Declined: Ragozin Defence (4 Nf3 Bb4).} 8. Bxc4 {[%emt 0:00:04]} Bd6 {[%emt 0:00:07]} 9. Qc2 {[%emt 0:00:10]} e5 {[%emt 0:00:23] White has an edge.} 10. dxe5 {[%emt 0:00:03]} Nxe5 {[%emt 0:00:04]} 11. Nxe5 {[%emt 0:00:09]} Bxe5 {[%emt 0:00:02]} 12. f4 {[%emt 0:00:10]} Bxc3 {[%emt 0:02:53]} 13. Bxc3 {[%emt 0:00:06][%cal Bd2c3,Bc3d4,Bd4c5][%mdl 32]} Ng4 {[%emt 0:00:10]} 14. Bd4 {[%emt 0:00:08] Threatening 0-0-0. A sharp opening} c5 $1 {[%emt 0:00:39]} 15. Bxc5 {[%emt 0:00:02][%cal Oc2b3] [#]} Re8 {[%emt 0:00:06] Black sacrificed a pawn} 16. Qe2 $146 {[%emt 0:00:06]} ({White should try} 16. O-O $14) ({Predecessor:} 16. O-O Nxe3 17. Bxe3 Rxe3 18. Rae1 Qb6 19. Qf2 Rxe1 20. Rxe1 Qxf2+ 21. Kxf2 Kf8 22. Bd5 {½-½ So,W (2757)-Aronian,L (2729) Crunchlab PlayIn Match D1 rapid 2024 (2.1)}) 16... Qc7 $11 {[%emt 0:27:49]} 17. Bd4 {[%emt 0:00:03]} Nxe3 $1 {[%emt 0:00:38]} 18. Bxe3 {[%emt 0:00:03] 0-0 is the strong threat. A strong pair of Bishops.} Bg4 {[%emt 0:00:08]} 19. Qxg4 {[%emt 0:00:06]} Rxe3+ {[%emt 0:00:18]} 20. Kf2 {[%emt 0:00:03]} Re4 {[%emt 0:07:52]} 21. Bxf7+ {[%emt 0:00:06]} Qxf7 {[%emt 0:00:05]} 22. g3 {[%emt 0:00:07]} Qf6 {[%emt 0:00:19]} 23. Rhd1 {[%emt 0:03:44]} Qxb2+ {[%emt 0:04:49]} 24. Kg1 {[%emt 0:00:03]} Rae8 {[%emt 0:04:48]} 25. Qf3 $1 {[%emt 0:03:40]} Qb6+ {[%emt 0:03:14]} 26. Qf2 {[%emt 0:20:39]} Qxf2+ {[%emt 0:08:54]} 27. Kxf2 {[%emt 0:00:03][%mdl 4096] Endgame KRR-KRR} Re2+ {[%emt 0:00:04]} 28. Kg1 {[%emt 0:01:55]} h5 {[%emt 0:08:04]} 29. Rf1 {[%emt 0:04:37]} Rc8 {[%emt 0:17:21] [#]} 30. Rf2 {[%emt 0:04:13]} Rxf2 {[%emt 0:00:36]} 31. Kxf2 $15 {[%emt 0:00:03] KR-KR} Rc2+ {[%emt 0:00:03]} 32. Kg1 {[%emt 0:08:23]} b5 {[%emt 0:02:09]} 33. Rb1 {[%emt 0:28:34]} a6 {[%emt 0:00:20]} ({Of course not} 33... Rxa2 34. Rxb5 g6 35. h3 $11) 34. a4 {[%emt 0:00:02]} bxa4 {[%emt 0:01:24]} 35. Ra1 {[%emt 0:00:02]} Rc4 {[%emt 0:00:07][%cal Oh5h4]} 36. Kg2 {[%emt 0:00:14]} g6 {[%emt 0:09:02]} 37. Kh3 {[%emt 0:02:54]} Kg7 {[%emt 0:00:06]} 38. Kh4 {[%emt 0:02:21]} Kh6 {[%emt 0:00:10]} 39. Kh3 {[%emt 0:00:14]} g5 {[%emt 0:03:12]} (39... Rb4 $17) 40. fxg5+ $1 $11 {[%emt 0:00:06] The position is equal.} Kxg5 {[%emt 0:00:03]} 41. Rd1 {[%emt 0:31:28]} Rc5 {[%emt 0:02:17] Hoping for ...a3.} (41... a3 $5 42. Rd5+ $8 Kf6 $16) 42. Ra1 {[%emt 0:00:00]} Ra5 {[%emt 0:01:03]} 43. Ra3 {[%emt 0:00:00]} Kg6 {[%emt 0:11:14]} 44. g4 {[%emt 0:00:00] Weighted Error Value: White=0.07 (flawless) /Black=0.05 (flawless)   Mistake:       	White=1     	Black=1      Inaccurate:     	White=2     	Black=1      OK:         	White=16    	Black=13     Best:        	White=6     	Black=6      Strong:       	White=2     	Black=2} 1/2-1/2

[Event "EICC 2025"]
[Site "Eforie-Nord"]
[Date "2025.03.16"]
[Round "2.24"]
[White "Mitsis, Georgios"]
[Black "Kobo, Ori"]
[Result "1-0"]
[Annotator "ChessBase"]
[ECO "E12"]
[WhiteElo "2376"]
[BlackElo "2525"]
[PlyCount "77"]
[EventDate "2025.03.14"]
[EventType "swiss"]
[EventCountry "ROU"]
[SourceTitle "playchess.com"]
[Source "ChessBase"]
[SourceQuality "1"]
[TimeControl "40/5400+30:1800+30"]

1. d4 {[%emt 0:00:05]} Nf6 {[%emt 0:00:19]} 2. Nf3 {[%emt 0:00:15]} e6 {[%emt 0:00:18]} 3. c4 {[%emt 0:00:08]} b6 {[%emt 0:00:18]} 4. a3 {[%emt 0:00:17]} Ba6 {[%emt 0:00:24]} 5. Qc2 {[%emt 0:00:22]} Bb7 {[%emt 0:00:12]} 6. Nc3 {[%emt 0:00:15]} c5 {[%emt 0:00:15]} 7. e4 {[%emt 0:00:32]} cxd4 {[%emt 0:00:53]} 8. Nxd4 {[%emt 0:00:24]} Bc5 {[%emt 0:00:12]} 9. Nf3 {[%emt 0:01:35]} Ng4 {[%emt 0:00:15]} 10. Bg5 {[%emt 0:00:19]} f6 {[%emt 0:00:11]} 11. Bh4 {[%emt 0:00:06]} Nc6 {[%emt 0:00:29]} 12. O-O-O {[%emt 0:04:17]} O-O {[%emt 0:00:11]} 13. Kb1 {[%emt 0:06:34]} Qe8 {[%emt 0:00:12]} 14. Bg3 {[%emt 0:13:37]} Nge5 {[%emt 0:15:50]} 15. Qd2 {[%emt 0:15:10]} Rd8 {[%emt 0:08:10]} 16. Ne1 {[%emt 0:08:01]} Qg6 {[%emt 0:20:59]} 17. f4 {[%emt 0:01:50]} Ng4 {[%emt 0:06:15]} 18. Nc2 {[%emt 0:00:54]} f5 {[%emt 0:09:08]} 19. exf5 {[%emt 0:09:02]} exf5 {[%emt 0:08:51]} 20. Bh4 {[%emt 0:00:44]} Be7 {[%emt 0:13:53]} 21. Qd5+ {[%emt 0:02:45]} Kh8 {[%emt 0:05:23]} 22. Bxe7 {[%emt 0:00:50]} Nxe7 {[%emt 0:00:04]} 23. Qxb7 {[%emt 0:00:10]} Nf2 {[%emt 0:00:07]} 24. Be2 {[%emt 0:01:14]} Nxh1 {[%emt 0:01:09]} 25. Rxh1 {[%emt 0:00:06]} Nc6 {[%emt 0:00:26]} 26. Bf3 {[%emt 0:00:48]} Na5 {[%emt 0:02:41]} 27. Qd5 {[%emt 0:00:20]} Rc8 {[%emt 0:00:07]} 28. Ne3 {[%emt 0:01:52]} Rfe8 {[%emt 0:02:27]} 29. Qd3 {[%emt 0:00:43]} Qe6 {[%emt 0:03:10]} 30. Ncd5 {[%emt 0:00:19]} Rf8 {[%emt 0:00:40]} 31. h3 {[%emt 0:08:13]} Nb7 {[%emt 0:01:07]} 32. g4 {[%emt 0:01:40]} Nc5 {[%emt 0:00:02]} 33. Qd4 {[%emt 0:00:46]} Nb3 {[%emt 0:01:33]} 34. Qc3 {[%emt 0:00:17]} Na5 {[%emt 0:00:09]} 35. gxf5 {[%emt 0:00:38]} Qh6 {[%emt 0:01:05]} 36. Qd3 {[%emt 0:00:53]} Rfe8 {[%emt 0:00:28]} 37. h4 {[%emt 0:00:19]} Nb7 {[%emt 0:00:26]} 38. h5 {[%emt 0:00:32]} Nc5 {[%emt 0:00:10]} 39. Qd4 {[%emt 0:00:23]} 1-0

[Event "EICC 2025"]
[Site "Eforie-Nord"]
[Date "2025.03.16"]
[Round "2.25"]
[White "Iskandarov, Misratdin"]
[Black "Damjanovic, Vuk"]
[Result "1-0"]
[Annotator "ChessBase"]
[ECO "B27"]
[WhiteElo "2524"]
[BlackElo "2368"]
[PlyCount "223"]
[EventDate "2025.03.14"]
[EventType "swiss"]
[EventCountry "ROU"]
[SourceTitle "playchess.com"]
[Source "ChessBase"]
[SourceQuality "1"]
[TimeControl "40/5400+30:1800+30"]

1. e4 {[%emt 0:00:04]} c5 {[%emt 0:00:18]} 2. Nf3 {[%emt 0:00:12]} g6 {[%emt 0:00:06]} 3. Bc4 {[%emt 0:00:57]} Bg7 {[%emt 0:00:07]} 4. c3 {[%emt 0:00:05]} e6 {[%emt 0:00:04]} 5. d4 {[%emt 0:02:36]} cxd4 {[%emt 0:00:07]} 6. Nxd4 {[%emt 0:00:24]} a6 {[%emt 0:08:47]} 7. Be3 {[%emt 0:05:36]} Ne7 {[%emt 0:01:42]} 8. Nd2 {[%emt 0:03:22]} O-O {[%emt 0:02:03]} 9. O-O {[%emt 0:03:53]} d5 {[%emt 0:03:58]} 10. exd5 {[%emt 0:06:22]} Nxd5 {[%emt 0:02:25]} 11. Bxd5 {[%emt 0:02:37]} Qxd5 {[%emt 0:08:47]} 12. Qb3 {[%emt 0:05:47]} Nc6 {[%emt 0:14:49]} 13. Qxd5 {[%emt 0:02:42]} exd5 {[%emt 0:00:07]} 14. Nxc6 {[%emt 0:01:29]} bxc6 {[%emt 0:00:06]} 15. Nb3 {[%emt 0:00:06]} a5 {[%emt 0:10:19]} 16. Bc5 {[%emt 0:05:51]} Re8 {[%emt 0:01:10]} 17. Rfe1 {[%emt 0:00:12]} Be6 {[%emt 0:01:00]} 18. Nd4 {[%emt 0:06:29]} Bxd4 {[%emt 0:02:25]} 19. cxd4 {[%emt 0:01:47]} a4 {[%emt 0:01:18]} 20. Re3 {[%emt 0:06:56]} Bd7 {[%emt 0:03:20]} 21. Rc1 {[%emt 0:05:11]} Rxe3 {[%emt 0:00:54]} 22. fxe3 {[%emt 0:00:03]} Rb8 {[%emt 0:01:06]} 23. Ba3 {[%emt 0:00:10]} f6 {[%emt 0:02:20]} 24. Kf2 {[%emt 0:00:23]} Rb6 {[%emt 0:00:37]} 25. Ke2 {[%emt 0:01:36]} Bc8 {[%emt 0:02:01]} 26. Kd2 {[%emt 0:07:16]} Ba6 {[%emt 0:00:59]} 27. Kc3 {[%emt 0:07:31]} Bc4 {[%emt 0:00:36]} 28. Ra1 {[%emt 0:00:16]} f5 {[%emt 0:03:23]} 29. Bb4 {[%emt 0:02:11]} Kf7 {[%emt 0:01:29]} 30. g4 {[%emt 0:05:29]} fxg4 {[%emt 0:04:11]} 31. e4 {[%emt 0:00:31]} h5 {[%emt 0:04:11]} 32. Re1 {[%emt 0:03:13]} Rb7 {[%emt 0:02:13]} 33. b3 {[%emt 0:00:19]} axb3 {[%emt 0:00:32]} 34. axb3 {[%emt 0:00:04]} Bb5 {[%emt 0:00:19]} 35. exd5 {[%emt 0:02:18]} cxd5 {[%emt 0:00:09]} 36. Bd6 {[%emt 0:00:11]} Kf6 {[%emt 0:02:34]} 37. Be5+ {[%emt 0:00:56]} Kf7 {[%emt 0:00:15]} 38. Bf4 {[%emt 0:01:07]} Bd7 {[%emt 0:01:56]} 39. Ra1 {[%emt 0:02:20]} Bf5 {[%emt 0:03:34]} 40. Ra8 {[%emt 0:01:44]} Be4 {[%emt 0:01:25]} 41. b4 {[%emt 0:32:45]} Kf6 {[%emt 0:33:06]} 42. Be5+ {[%emt 0:00:00]} Kf7 {[%emt 0:00:00]} 43. Ra5 {[%emt 0:00:00]} h4 {[%emt 0:00:00]} 44. b5 {[%emt 0:00:00]} Bf5 {[%emt 0:00:00]} 45. Kb4 {[%emt 0:00:00]} g3 {[%emt 0:00:00]} 46. hxg3 {[%emt 0:00:00]} h3 {[%emt 0:00:00]} 47. g4 {[%emt 0:00:00]} Bxg4 {[%emt 0:00:00]} 48. Kc5 {[%emt 0:00:00]} Re7 {[%emt 0:00:00]} 49. b6 {[%emt 0:00:00]} Bc8 {[%emt 0:00:00]} 50. Ra8 {[%emt 0:00:00]} Re8 {[%emt 0:00:00]} 51. Rxc8 {[%emt 0:00:00]} Rxc8+ {[%emt 0:00:00]} 52. Kxd5 {[%emt 0:00:00]} Re8 {[%emt 0:00:00]} 53. Bh2 {[%emt 0:00:00]} Re7 {[%emt 0:00:00]} 54. Kc6 {[%emt 0:00:00]} Re6+ {[%emt 0:00:00]} 55. Kc5 {[%emt 0:00:00]} Re7 {[%emt 0:00:00]} 56. d5 {[%emt 0:00:06]} Ke8 {[%emt 0:00:00]} 57. Kc6 {[%emt 0:07:14]} Re2 {[%emt 0:00:00]} 58. Be5 {[%emt 0:01:43]} Rc2+ {[%emt 0:00:00]} 59. Kd6 {[%emt 0:00:20]} Rc1 {[%emt 0:00:00]} 60. b7 {[%emt 0:00:12]} Rb1 {[%emt 0:00:00]} 61. Kc6 {[%emt 0:01:09]} Rc1+ {[%emt 0:00:00]} 62. Kb6 {[%emt 0:01:29]} Rb1+ {[%emt 0:00:00]} 63. Kc7 {[%emt 0:00:57]} Rc1+ {[%emt 0:00:00]} 64. Kb6 {[%emt 0:01:56]} Rb1+ {[%emt 0:00:00]} 65. Ka6 {[%emt 0:00:32]} h2 {[%emt 0:00:00]} 66. Bxh2 {[%emt 0:00:02]} Ra1+ {[%emt 0:00:00]} 67. Kb6 {[%emt 0:00:07]} Rb1+ {[%emt 0:00:00]} 68. Kc7 {[%emt 0:00:11]} Rc1+ {[%emt 0:00:02]} 69. Kb8 {[%emt 0:01:03]} Kd7 {[%emt 0:08:31]} 70. Be5 {[%emt 0:00:15]} Re1 {[%emt 0:00:44]} 71. Ka7 {[%emt 0:00:24]} Rxe5 {[%emt 0:00:05]} 72. b8=Q {[%emt 0:00:05]} Rxd5 {[%emt 0:00:03]} 73. Qg8 {[%emt 0:00:22]} Rd6 {[%emt 0:00:17]} 74. Kb7 {[%emt 0:01:35]} Rf6 {[%emt 0:00:05]} 75. Qg7+ {[%emt 0:00:34]} Ke6 {[%emt 0:00:01]} 76. Kc6 {[%emt 0:00:07]} Kf5+ {[%emt 0:01:03]} 77. Kd5 {[%emt 0:00:46]} g5 {[%emt 0:00:17]} 78. Kd4 {[%emt 0:03:28]} Re6 {[%emt 0:00:02]} 79. Qf7+ {[%emt 0:01:26]} Rf6 {[%emt 0:00:07]} 80. Qg7 {[%emt 0:00:09]} Re6 {[%emt 0:00:32]} 81. Qd7 {[%emt 0:00:21]} Kf6 {[%emt 0:00:03]} 82. Qh7 {[%emt 0:00:35]} Re8 {[%emt 0:01:30]} 83. Qh5 {[%emt 0:00:23]} Re6 {[%emt 0:00:33]} 84. Qh8+ {[%emt 0:00:44]} Kf5 {[%emt 0:01:08]} 85. Qh3+ {[%emt 0:00:45]} Kf6 {[%emt 0:00:04]} 86. Kd5 {[%emt 0:00:06]} Re5+ {[%emt 0:00:08]} 87. Kd6 {[%emt 0:00:04]} Re4 {[%emt 0:00:04]} 88. Qf3+ {[%emt 0:01:17]} Rf4 {[%emt 0:00:02]} 89. Qd5 {[%emt 0:00:15]} Kg6 {[%emt 0:00:15]} 90. Ke6 {[%emt 0:00:19]} Rf6+ {[%emt 0:00:20]} 91. Ke7 {[%emt 0:00:05]} Rf4 {[%emt 0:00:02]} 92. Qe6+ {[%emt 0:01:18]} Kg7 {[%emt 0:01:10]} 93. Qh3 {[%emt 0:00:40]} Kg6 {[%emt 0:00:27]} 94. Ke6 {[%emt 0:00:08]} Re4+ {[%emt 0:00:05]} 95. Kd5 {[%emt 0:00:04]} Rf4 {[%emt 0:00:04]} 96. Ke5 {[%emt 0:00:05]} Rh4 {[%emt 0:01:11]} 97. Qd3+ {[%emt 0:00:20]} Kh6 {[%emt 0:00:11]} 98. Qd6+ {[%emt 0:00:38]} Kh5 {[%emt 0:00:08]} 99. Kf6 {[%emt 0:00:11]} Rf4+ {[%emt 0:00:17]} 100. Kg7 {[%emt 0:00:05]} Rf3 {[%emt 0:00:36]} 101. Qh2+ {[%emt 0:00:31]} Kg4 {[%emt 0:00:05]} 102. Kg6 {[%emt 0:00:04]} Rg3 {[%emt 0:00:24]} 103. Qh5+ {[%emt 0:00:49]} Kf4 {[%emt 0:00:03]} 104. Qd1 {[%emt 0:00:10]} Ke5 {[%emt 0:00:32]} 105. Qf1 {[%emt 0:01:15]} Ke4 {[%emt 0:00:11]} 106. Qf2 {[%emt 0:00:08]} Rf3 {[%emt 0:00:34]} 107. Qe2+ {[%emt 0:00:18]} Kf4 {[%emt 0:00:02]} 108. Qc4+ {[%emt 0:00:05]} Kg3 {[%emt 0:00:04]} 109. Kxg5 {[%emt 0:00:05]} Rf2 {[%emt 0:00:02]} 110. Qe4 {[%emt 0:00:43]} Kh2 {[%emt 0:00:10]} 111. Kg4 {[%emt 0:00:09]} Rg2+ {[%emt 0:00:05]} 112. Kf3 {[%emt 0:04:37]} 1-0